{"text_format":"3","workbook":"xlsx","n_sheets":2,"sheets":["Start","Bryllupsbudget"],"read":"whole","date_system":"1900"}

{"sheet":"Start","index":0,"n_rows":7,"n_cols":2,"rows_kept":7}
[null,"OM DENNE SKABELON"]
[null,"Brug denne skabelon til at logge dine faktiske bryllupsudgifter for forskellige elementer og spore dem i forhold til de budgetterede beløb."]
[null,"Angiv udgifter til tøj, pynt, gaver, blomster, musik, fotografering, reception, tryksager, transport og diverse i de respektive tabeller."]
[null,"De samlede anslåede udgifter og de samlede faktiske udgifter beregnes automatisk."]
[null,"Bemærk: "]
[null,"Yderligere vejledning er angivet i kolonne A i regnearket BRYLLUPSBUDGET. Denne tekst er skjult med vilje. Du kan fjerne tekst ved at markere kolonne A og derefter vælge Slet. For ikke længere at skjule tekst skal du markere kolonne A og derefter ændre skriftfarven."]
[null,"Hvis du vil vide mere om tabeller, skal du trykke på SHIFT og derefter F10, mens du er i en tabel, vælge indstillingen TABEL og derefter vælge ALTERNATIV TEKST."]

{"sheet":"Bryllupsbudget","index":1,"n_rows":93,"n_cols":4,"rows_kept":93,"merged":[[0,1,0,3],[2,1,2,3],[6,1,6,3],[15,1,15,3],[25,1,25,3],[34,1,34,3],[43,1,43,3],[50,1,50,3],[59,1,59,3],[68,1,68,3],[77,1,77,3],[85,1,85,3]]}
[null,"BRYLLUPSBUDGET"]
[]
[null,"UDGIFTER I ALT "]
[null,"Element ","Anslået","Faktisk"]
[null,"Udgifter i alt ",{"$f":"SUM(Tøj[[#Totals],[Anslået]],Dekorationer[[#Totals],[Anslået]],Gaver[[#Totals],[Anslået]],Blomster[[#Totals],[Anslået]],Musik[[#Totals],[Anslået]],Fotografering[[#Totals],[Anslået]],Reception[[#Totals],[Anslået]],KontorartiklerOgUdskrivning[[#Totals],[Anslået]],Transport[[#Totals],[Anslået]],AndreUdgifter[[#Totals],[Anslået]])","v":0},{"$f":"SUM(Tøj[[#Totals],[Faktisk]],Dekorationer[[#Totals],[Faktisk]],Gaver[[#Totals],[Faktisk]],Blomster[[#Totals],[Faktisk]],Musik[[#Totals],[Faktisk]],Fotografering[[#Totals],[Faktisk]],Reception[[#Totals],[Faktisk]],KontorartiklerOgUdskrivning[[#Totals],[Faktisk]],Transport[[#Totals],[Faktisk]],AndreUdgifter[[#Totals],[Faktisk]],)","v":0}]
[]
[null,"TØJ"]
[null,"Element ","Anslået","Faktisk"]
[null,"Forlovelsesring"]
[null,"Vielsesring"]
[null,"Brudekjole"]
[null,"Slør/hovedbeklædning"]
[null,"Andet:"]
[null,"Samlet udgift til tøj",{"$f":"SUBTOTAL(109,Tøj[Anslået])","v":0},{"$f":"SUBTOTAL(109,Tøj[Faktisk])","v":0}]
[]
[null,"PYNT"]
[null,"Element ","Anslået","Faktisk"]
[null,"Sløjfer til kirkebænk/andre siddepladser"]
[null,"Borddekoration (ekskl. blomster)"]
[null,"Lys"]
[null,"Belysning"]
[null,"Balloner"]
[null,"Andet:"]
[null,"Samlet udgift til pynt",{"$f":"SUBTOTAL(109,Dekorationer[Anslået])","v":0},{"$f":"SUBTOTAL(109,Dekorationer[Faktisk])","v":0}]
[]
[null,"GAVER"]
[null,"Element ","Anslået","Faktisk"]
[null,"Deltagere"]
[null,"Brud og brudgom"]
[null,"Forældre"]
[null,"Oplæsere/andre deltagere"]
[null,"Andet:"]
[null,"Samlet udgift til gaver",{"$f":"SUBTOTAL(109,Gaver[Anslået])","v":0},{"$f":"SUBTOTAL(109,Gaver[Faktisk])","v":0}]
[]
[null,"BLOMSTER"]
[null,"Element ","Anslået","Faktisk"]
[null,"Blomsterbuketter"]
[null,"Knaphulsblomster"]
[null,"Pyntebuketter"]
[null,"Ceremoni"]
[null,"Andet:"]
[null,"Samlet udgift til blomster",{"$f":"SUBTOTAL(109,Blomster[Anslået])","v":0},{"$f":"SUBTOTAL(109,Blomster[Faktisk])","v":0}]
[]
[null,"MUSIK"]
[null,"Element ","Anslået","Faktisk"]
[null,"Musikere til ceremonien"]
[null,"Band/DJ til receptionen"]
[null,"Andet:"]
[null,"Samlet udgift til musik",{"$f":"SUBTOTAL(109,Musik[Anslået])","v":0},{"$f":"SUBTOTAL(109,Musik[Faktisk])","v":0}]
[]
[null,"FOTOGRAFERING"]
[null,"Element ","Anslået","Faktisk"]
[null,"Formelle billeder"]
[null,"Naturlige billeder"]
[null,"Ekstra tryk"]
[null,"Fotoalbummer"]
[null,"Andet:"]
[null,"Samlet udgift til fotografering",{"$f":"SUBTOTAL(109,Fotografering[Anslået])","v":0},{"$f":"SUBTOTAL(109,Fotografering[Faktisk])","v":0}]
[]
[null,"RECEPTION "]
[null,"Element ","Anslået","Faktisk"]
[null,"Lokalegebyrer"]
[null,"Borde og stole"]
[null,"Mad"]
[null,"Duge"]
[null,"Andet:"]
[null,"Reception i alt (ekskl. musik og pynt)",{"$f":"SUBTOTAL(109,Reception[Anslået])","v":0},{"$f":"SUBTOTAL(109,Reception[Faktisk])","v":0}]
[]
[null,"TRYKSAGER OG UDSKRIVNING"]
[null,"Element ","Anslået","Faktisk"]
[null,"Invitationer"]
[null,"Bekendtgørelser"]
[null,"Takkekort"]
[null,"Personligt brevpapir"]
[null,"Andet:"]
[null,"I alt for tryksager/udskrivning",{"$f":"SUBTOTAL(109,KontorartiklerOgUdskrivning[Anslået])","v":0},{"$f":"SUBTOTAL(109,KontorartiklerOgUdskrivning[Faktisk])","v":0}]
[]
[null,"TRANSPORT"]
[null,"Element ","Anslået","Faktisk"]
[null,"Limousiner/vogne"]
[null,"Parkering"]
[null,"Taxa"]
[null,"Andet:"]
[null,"Samlet udgift til transport",{"$f":"SUBTOTAL(109,Transport[Anslået])","v":0},{"$f":"SUBTOTAL(109,Transport[Faktisk])","v":0}]
[]
[null,"ANDRE UDGIFTER"]
[null,"Element ","Anslået","Faktisk"]
[null,"Person, der udfører vielse"]
[null,"Gebyr til kirke/ceremonistedet"]
[null,"Bryllupskoordinater"]
[null,"Prøvemiddag"]
[null,"Andet:"]
[null,"Samlede andre udgifter",{"$f":"SUBTOTAL(109,AndreUdgifter[Anslået])","v":0},{"$f":"SUBTOTAL(109,AndreUdgifter[Faktisk])","v":0}]